lending/lending_fUSD_20240721
["ID","MTS","AMOUNT","RATE_DAILY","PERIOD"]
[332819257,1721549432182,-319.86602871,0.000139,2]
[332819258,1721549432191,-151.06330316,0.000139,2]
[332819259,1721549432201,-205.48,0.00013973,2]
[332819260,1721549432210,-183.04,0.0001398,3]
[332819261,1721549432220,-549.15,0.0001398,3]
[332819262,1721549432230,-16991.2629132,0.0001398,3]
[332819263,1721549432239,-5663.75430439,0.00013989,3]
[332819264,1721549432249,-5545.94035955,0.00013989,2]
[332819265,1721549432258,-198231.400654,0.0001399,3]
[332819266,1721549432268,-840.0,0.00013991,2]
[332819267,1721549432278,-233.65882373,0.00013999,2]
[332819268,1721549432287,-152.20150663,0.00013999,2]
[332819269,1721549432297,-500.0,0.00013999,2]
[332819270,1721549432307,-500.0,0.00013999,2]
[332819271,1721549432317,-566.95369064,0.00013999,2]
[332819272,1721549432326,-66285.09781726,0.00014,2]
[332819273,1721549432343,-7436.83739313,0.00014,2]
[332819274,1721549432354,-4833.61660523,0.00014,2]
[332819275,1721549432369,-365.49767022,0.00014,2]
[332819276,1721549432381,-990.05544266,0.00014,2]
[332819277,1721549432403,-442.695,0.00014,2]
[332819281,1721549437863,-540.33523103,0.00013979,2]
[332819282,1721549437875,-756.1006637,0.00013979,2]
[332819283,1721549437885,-1996.37233072,0.00014,2]
[332819288,1721549438216,-577.99,0.00014,2]
[332819458,1721549440118,-1445.7065257,0.00014,2]
[332819961,1721549446435,-1944.6647616,0.0001386,2]
[332819963,1721549446447,-849.3352384,0.0001386,2]
[332819965,1721549446457,-0.6647616,0.00014,2]
[332819968,1721549446478,-432.77116256,0.00014,2]
[332820459,1721549454824,156.56,0.00018905,30]
[332820460,1721549493941,25055.37481926,0.00010959,3]
[332820468,1721549746468,2838.08549149,0.00013066,2]
[332820469,1721549790711,150.5,0.0001399,30]
[332820470,1721549790818,223.5,0.0001398,30]
[332820471,1721549795122,159.51806429,0.00013099,2]
[332820478,1721549869570,1609.19616097,0.00013033,2]
[332820479,1721549886454,15145.66619543,0.00012928,2]
[332820480,1721549886479,306.26560577,0.00012928,2]
[332820481,1721549908180,3934.21090107,0.00012982,2]
[332820482,1721549908203,10000.0,0.00012982,2]
[332820483,1721549908225,9965.78909893,0.00012982,2]
[332820485,1721549944361,34.21090107,0.00012872,2]
[332820486,1721549944382,465.78909893,0.00012872,2]
[332820488,1721549982182,156.56,0.00018849,30]
[332820489,1721550021864,250.0,0.00012875,2]
[332820490,1721550034779,1239.25701335,0.00012928,2]
[332820491,1721550040603,8044.95388772,0.00012462,2]
[332820492,1721550040625,4886.92251813,0.00012462,2]
[332820493,1721550048260,195.2,0.00012888,2]
[332820496,1721550056521,521.74362309,0.00012995,2]
[332820497,1721550066929,492.62763125,0.00012995,2]
[332820498,1721550073080,265.87657101,0.00012995,2]
[332820499,1721550077452,3070.29,0.00012884,2]
[332820500,1721550077614,567.33965652,0.00012887,2]
[332820501,1721550077637,2502.95034348,0.00012887,2]
[332820502,1721550077841,3070.29,0.00012891,2]
[332820503,1721550078046,3070.29,0.00012894,2]
[332820504,1721550078455,1356.46965652,0.00012898,2]
[332820505,1721550078478,1713.82034348,0.00012898,2]
[332820506,1721550078655,3070.29,0.00012901,2]
[332820507,1721550079349,3070.29,0.00012904,2]
[332820508,1721550079449,309.38525891,0.00012995,2]
[332820509,1721550079528,1836.21439761,0.00012908,2]
[332820510,1721550079551,1234.07560239,0.00012908,2]
[332820511,1721550079589,3070.29,0.00012911,2]
[332820512,1721550079849,3070.29,0.00012915,2]
[332820513,1721550079959,2625.34439761,0.00012918,2]
[332820514,1721550079983,444.94560239,0.00012918,2]
[332820515,1721550080267,3070.29,0.00012921,2]
[332820516,1721550080464,3070.29,0.00012925,2]
[332820517,1721550080643,3070.29,0.00012928,2]
[332820518,1721550080837,344.18439761,0.00012932,2]
[332820519,1721550080859,2726.10560239,0.00012932,2]
[332820520,1721550081033,3070.29,0.00012935,2]
[332820521,1721550081242,3070.29,0.00012938,2]
[332820522,1721550081422,155.0,0.00012995,2]
[332820523,1721550081653,978.31439761,0.00012942,2]
[332820524,1721550088346,366.08,0.00010959,2]
[332820535,1721550166340,150.0,0.00010959,2]
[332820536,1721550166362,150.0,0.00010959,2]
[332820537,1721550166384,150.0,0.00010959,2]
[332820538,1721550166408,150.0,0.00010959,2]
[332820539,1721550166429,172.38318091,0.00010959,2]
[332820540,1721550166452,567.20514651,0.00010959,2]
[332820541,1721550231975,1000.05,0.00010846,2]
[332820544,1721550319469,229.11843409,9e-05,2]
[332820545,1721550329337,35105.97874614,0.000118,2]
[332820546,1721550336299,2782.30011665,0.00011,2]
[332820548,1721550505582,156.56,0.00018849,30]
[332820552,1721550632028,-195.2,0.00012479,2]
[332820553,1721550632038,-775.91180087,0.00012487,2]
[332820554,1721550632049,-628.42,0.00012487,2]
[332820560,1721550632437,-1302.47819913,0.00012487,2]
[332820562,1721550632447,-300.0,0.00012538,2]
[332820564,1721550632456,-5741.41152991,0.00012539,2]
[332820566,1721550632468,-617.94087704,0.00012539,2]
[332820568,1721550632479,-1094.89027509,0.00012539,2]
[332820570,1721550632490,-909.71714587,0.00012539,2]
[332820573,1721550632502,-1361.45276237,0.00012539,2]
[332820575,1721550632512,-1042.16772,0.00012539,2]
[332820578,1721550632536,-5973.18862995,0.00012539,2]
[332820580,1721550632548,-1870.38996154,0.00012539,2]
[332820583,1721550632559,-5288.84109823,0.00012539,2]
[332820585,1721550632568,-1000.0,0.00012544,2]
[332820587,1721550632578,-150.0,0.000126,2]
[332820589,1721550632588,-4285.64,0.00012604,2]
[332820591,1721550632597,-178.61,0.00012615,2]
[332820593,1721550632607,-500.0,0.00012638,2]
[332820594,1721550632616,-356.52412219,0.00012681,2]
[332820596,1721550632625,-408.91067874,0.00012681,2]
[332820598,1721550632635,-413.67982935,0.0001269,2]
[332820600,1721550632644,-308.85879004,0.0001269,2]
[332820602,1721550632653,-155.26141599,0.0001269,2]
[332820604,1721550632663,-308.85879004,0.0001269,2]
[332820606,1721550632673,-362.73303923,0.00012696,2]
[332820608,1721550632682,-205.50428581,0.00012696,2]
[332820610,1721550632691,-155.25666917,0.00012696,2]
[332820612,1721550632701,-3635.79,0.00012722,2]
[332820614,1721550632710,-3116.38423021,0.00012749,2]
[332820616,1721550632720,-2777.56446602,0.00012749,2]
[332820618,1721550632730,-150.0,0.00012784,2]
[332820620,1721550632740,-155.0,0.00012818,2]
[332820621,1721550632749,-772.0,0.00012872,2]
[332820623,1721550632758,-150.0,0.00012874,2]
[332820625,1721550632768,-6748.75,0.00012875,2]
[332820627,1721550632778,-2091.97560239,0.00012942,2]
[332820629,1721550632787,-3070.29,0.00012945,2]
[332820631,1721550632796,-3070.29,0.00012949,2]
[332820633,1721550632806,-835.62734368,0.00012995,2]
[332820635,1721550632815,-295.38128046,0.00012995,2]
[332820637,1721550632825,-367.02658979,0.00012995,2]
[332820639,1721550632834,-1000.05,0.0001311,2]
[332820641,1721550632843,-525.41980997,0.00013283,2]
[332820643,1721550632852,-529.91638382,0.00013297,2]
[332820645,1721550632861,-305.0607716,0.0001331,2]
[332820647,1721550632871,-150.99,0.00013475,2]
[332820649,1721550632880,-4993.82,0.00013475,2]
[332820650,1721550632889,-253.37,0.00013475,2]
[332820651,1721550632898,-150.99,0.00013475,2]
[332820652,1721550632908,-2484.16930846,0.00013483,2]
[332820653,1721550632920,-1217.4363,0.00013484,2]
[332820654,1721550632929,-38640.4479,0.00013484,2]
[332820655,1721550632939,-8188.9481,0.00013484,2]
[332820656,1721550632948,-2508.7196,0.00013621,2]
[332820657,1721550632958,-265.08570858,0.0001367,2]
[332820658,1721550632967,-188.44,0.00013699,2]
[332820659,1721550632977,-10000.0,0.00013699,2]
[332820660,1721550632986,-200.0,0.00013699,2]
[332820661,1721550632996,-1500.0,0.00013699,5]
[332820662,1721550633005,-701.4,0.00013699,2]
[332820663,1721550633015,-250.0,0.00013699,2]
[332820664,1721550633024,-1159.13,0.00013699,2]
[332820665,1721550633033,-500.0,0.00013699,2]
[332820666,1721550633042,-2488.09,0.00013699,2]
[332820667,1721550633051,-173.9551352,0.00013719,2]
[332820668,1721550633061,-1629.06500109,0.0001372,5]
[332820669,1721550633070,-9257.67538197,0.0001372,2]
[332820670,1721550633079,-839.96866598,0.00013799,2]
[332820671,1721550633089,-2165.638,0.000138,2]
[332820672,1721550633099,-197.94184881,0.0001386,2]
[332820673,1721550633108,-534.30658797,0.00013873,2]
[332820674,1721550633119,-379.53669089,0.00013879,2]
[332820675,1721550633128,-534.30658797,0.0001388,2]
[332820676,1721550633138,-534.30658797,0.00013887,2]
[332820677,1721550633147,-219.68,0.0001389,2]
[332820678,1721550633157,-534.30658797,0.00013893,2]
[332820679,1721550633166,-10528.40518333,0.00013899,2]
[332820680,1721550633176,-534.30658797,0.000139,2]
[332820681,1721550633186,-1696.00887188,0.000139,2]
[332820682,1721550633195,-153.68776239,0.000139,2]
[332820683,1721550633205,-322.21715556,0.000139,2]
[332820684,1721550633214,-168.84536314,0.000139,2]
[332820685,1721550633223,-153.64,0.00013973,2]
[332820686,1721550633233,-2383.0098586,0.00013979,2]
[332820687,1721550633242,-255.0,0.00013981,2]
[332820688,1721550633252,-2195.26613138,0.00013986,3]
[332820689,1721550633262,-890.74057297,0.00013989,2]
[332820690,1721550633272,-74639.0484669,0.0001399,3]
[332820691,1721550633286,-167.61350803,0.0001399,2]
[332820692,1721550633296,-167.61350803,0.0001399,2]
[332820693,1721550633305,-167.61350803,0.0001399,2]
[332820694,1721550633315,-210.41050591,0.00013999,2]
[332820695,1721550633327,-3708.79351246,0.00013999,2]
[332820696,1721550633336,-171.92556006,0.00013999,2]
[332820697,1721550633345,-500.0,0.00013999,2]
[332820698,1721550633355,-424.89969391,0.00013999,2]
[332820699,1721550633366,-482.74602977,0.00013999,2]
[332820700,1721550633375,-150.0,0.00013999,2]
[332820701,1721550633386,-1333464.94814839,0.00014,2]
[332820702,1721550633399,-24729.67258183,0.00014,2]
[332820703,1721550633428,-18273.5538286,0.00014,2]
[332820704,1721550633440,-10264.01117395,0.00014,2]
[332820705,1721550633452,-177387.77091482,0.00014,2]
[332820706,1721550633464,-24175.14347884,0.00014,2]
[332820707,1721550633487,-2281.279,0.00014,2]
[332820708,1721550633499,-10806.28588042,0.00014,2]
[332820709,1721550633514,-805.36977144,0.00014,2]
[332820710,1721550633529,-446.45853724,0.00014,2]
[332820711,1721550633541,-2695.04311048,0.00014,2]
[332820726,1721550638093,-525.41980997,0.00013283,2]
[332820727,1721550638103,-86.76259242,0.00013999,2]
[332820728,1721550638115,-560.95554593,0.00013999,2]
[332820729,1721550638125,-27000.97426499,0.00014,2]
[332820730,1721550638156,-1587.81759761,0.00014,2]
[332820731,1721550638252,-5747.08946841,0.00014,2]
[332820732,1721550638264,-4729.95705,0.00014,2]
[332820733,1721550638315,-47776.02367296,0.00014,2]
[332820734,1721550638346,-500.0,0.00014,2]
[332820916,1721550640112,-160.84441328,0.00013999,2]
[332820918,1721550640121,-1854.39675623,0.00013999,2]
[332820920,1721550640131,-4481.22831881,0.00014,2]
[332820922,1721550640142,-511.70455756,0.00014,2]
[332820932,1721550640238,-545.89325865,0.00014,2]
[332820934,1721550640249,-927.22751103,0.00014,2]
[332820935,1721550640259,-335.46265929,0.00014,2]
[332820937,1721550640272,-14901.43966287,0.00014,2]
[332820952,1721550640414,-3385.06282993,0.00014,2]
[332820954,1721550640427,-500.0,0.00014,2]
[332820957,1721550640438,-681.43362743,0.00014,2]
[332820959,1721550640451,-11548.30513058,0.00014,2]
[332820961,1721550640462,-5095.86781806,0.00014,2]
[332820964,1721550640485,-403.45702858,0.00014,2]
[332820967,1721550640496,-585.97499997,0.00014,2]
[332820974,1721550640555,-846.52210567,0.00014,2]
[332820979,1721550640685,-153999.63102167,0.00014,2]
[332821261,1721550643546,-150.48172675,0.00013999,2]
[332821263,1721550643555,-297201.75888371,0.00014,2]
[332821712,1721550805354,900.04,0.00011813,2]
[332821713,1721550834227,300.03264459,0.00011813,2]
[332821714,1721550835371,19868.89612068,0.00011813,2]
[332821715,1721550844204,7595.42725403,0.00011813,2]
[332821716,1721550889082,797.15416373,0.00011813,2]
[332821718,1721550989079,797.97814546,0.00011813,2]
[332821719,1721551030102,150.05,0.00018849,30]
[332821721,1721551299550,250.0,0.00012272,2]
[332821722,1721551328360,855.03,0.00010283,2]
[332821723,1721551355620,250.0,0.00012135,2]
[332821725,1721551490161,150.0,0.00012111,2]
[332821726,1721551546003,150.05,0.00018849,30]
[332821728,1721551620259,-585.0,0.00012546,2]
[332821729,1721551620283,-855.03,0.00012547,2]
[332821730,1721551620306,-150.0,0.000126,2]
[332821731,1721551620329,-150.0,0.00012904,2]
[332821732,1721551620352,-218.19,0.00012908,2]
[332821733,1721551620376,-218.19,0.00012911,2]
[332821734,1721551620400,-218.19,0.00012915,2]
[332821735,1721551620423,-218.19,0.00012918,2]
[332821736,1721551620446,-218.19,0.00012922,2]
[332821737,1721551620468,-499.99,0.00012924,2]
[332821738,1721551620491,-2661.53,0.00012925,2]
[332821739,1721551620514,-218.19,0.00012925,2]
[332821740,1721551620536,-218.19,0.00012928,2]
[332821741,1721551620559,-218.19,0.00012932,2]
[332821742,1721551620586,-218.19,0.00012935,2]
[332821743,1721551620610,-218.19,0.00012939,2]
[332821744,1721551620632,-218.19,0.00012942,2]
[332821745,1721551620656,-218.19,0.00012945,2]
[332821746,1721551620678,-218.19,0.00012949,2]
[332821747,1721551620701,-218.19,0.00012952,2]
[332821748,1721551620723,-218.19,0.00012956,2]
[332821749,1721551620746,-218.19,0.00012959,2]
[332821750,1721551620768,-218.19,0.00012962,2]
[332821751,1721551620791,-218.19,0.00012966,2]
[332821752,1721551620812,-218.19,0.00012969,2]
[332821753,1721551620835,-218.19,0.00012972,2]
[332821754,1721551624268,734.65,0.00012928,2]
[332821755,1721551624291,9793.75518333,0.00012928,2]
[332821756,1721551624418,206.24481667,0.00012908,2]
[332821757,1721551625758,-3515.00009175,0.00012908,2]
[332821770,1721551832326,-265.08570858,0.00013,2]
[332821771,1721551832337,-156.16,0.00013053,2]
[332821772,1721551832348,-800.0,0.00013068,2]
[332821773,1721551832358,-243.84,0.00013133,2]
[332821774,1721551832369,-200.0,0.00013225,2]
[332821775,1721551832380,-166.69689958,0.00013379,2]
[332821776,1721551832391,-322.21715554,0.00013379,2]
[332821777,1721551832402,-300.0,0.00013446,2]
[332821778,1721551832412,-150.0,0.00013447,2]
[332821779,1721551832423,-2042.09312511,0.00013447,2]
[332821780,1721551832449,-254339.92085188,0.00013447,2]
[332821781,1721551832459,-4658.28031236,0.00013448,2]
[332821790,1721551832768,-4843.30926104,0.00013448,2]
[332821795,1721551832963,-2207.28910027,0.00013448,2]
[332821796,1721551836165,843.69,0.00011253,2]
[332821803,1721551838322,-253.70482749,0.00013448,2]
[332821804,1721551838379,-1014.6173005,0.00013448,2]
[332821805,1721551838437,-1544.59791416,0.00013448,2]
[332821806,1721551838603,-275366.55799978,0.00013448,2]
[332821807,1721551838662,-1067.7723143,0.00013448,2]
[332821808,1721551838674,-5233.68,0.00013448,2]
[332821818,1721551842181,-6349.70000002,0.00013448,2]
[332821819,1721551842194,-349.435,0.00013448,2]
[332821820,1721551842205,-636.08750355,0.00013448,2]
[332821821,1721551842236,-13757.96846653,0.00013448,2]
[332821822,1721551842246,-221.58281195,0.00013479,2]
[332821823,1721551842258,-264.97718805,0.00013479,2]
[332821824,1721551842268,-1819.5778893,0.00013483,2]
[332821825,1721551842277,-1295.39324134,0.00013489,2]
[332821826,1721551842286,-155.99964841,0.00013499,2]
[332821827,1721551842295,-843.69,0.00013517,2]
[332821828,1721551842305,-179.89189734,0.00013569,2]
[332821829,1721551842314,-413.52601323,0.00013579,2]
[332821830,1721551842323,-25285.70747016,0.00013579,2]
[332821831,1721551842333,-150.48172675,0.00013698,2]
[332821832,1721551842342,-500.0,0.00013698,2]
[332821834,1721551842352,-200.0,0.00013699,2]
[332821836,1721551842361,-350.7,0.00013699,2]
[332821838,1721551842370,-250.0,0.00013699,2]
[332821840,1721551842380,-540.08242477,0.00013699,2]
[332821842,1721551842389,-9253.14510227,0.0001372,2]
[332821844,1721551842398,-7423.49540053,0.0001379,2]
[332821845,1721551842407,-3364.63836488,0.000138,3]
[332821901,1721551843482,-322.1434398,0.000138,3]
[332821902,1721551843536,-1168.580067,0.000138,3]
[332821907,1721551843650,-361.12619786,0.000138,3]
[332821908,1721551843664,-11657.60272126,0.000138,3]
[332821909,1721551843674,-4218.52269771,0.00013869,3]
[332821910,1721551843683,-3116.38423021,0.00013879,2]
[332821911,1721551843693,-191.87,0.00013973,2]
[332821912,1721551843703,-4218.52269771,0.00013979,3]
[332821913,1721551843713,-126555.680931,0.0001398,3]
[332821914,1721551843722,-205.52225003,0.00013986,2]
[332821915,1721551843731,-591.70859752,0.00013986,2]
[332821916,1721551843741,-205.52225003,0.00013986,2]
[332821917,1721551843751,-1656.11287231,0.00013989,2]
[332821918,1721551843761,-4218.52269771,0.0001399,3]
[332821919,1721551843770,-50622.2723725,0.0001399,3]
[332821920,1721551843779,-160.84441328,0.00013999,2]
[332821921,1721551843789,-1854.39675623,0.00013999,2]
[332821922,1721551843799,-527.80162773,0.00013999,2]
[332821923,1721551843808,-644.0,0.00014,2]
[332821925,1721551843818,-86706.95349523,0.00014,2]
[332822153,1721551846359,-2274.60396371,0.00014,2]
[332822160,1721551846419,-1216.07779227,0.00014,2]
[332822162,1721551846431,-1766.41052802,0.00014,2]
[332822164,1721551846443,-1193.28658012,0.00014,2]
[332822174,1721551846532,-497.75,0.00014,2]
[332822208,1721551846703,-670.70874,0.00014,2]
[332822211,1721551846719,-349.448383,0.00014,2]
[332822215,1721551846731,-511.85185807,0.00014,2]
[332822219,1721551846744,-36866.90749795,0.00014,2]
[332822222,1721551846757,-62656.64133872,0.00014,2]
[332822272,1721551847011,5641.30990825,0.00012462,2]
[332822277,1721551847034,10000.0,0.00012462,2]
[332822435,1721551950267,307.0,0.0001399,30]
[332822436,1721551950730,307.0,0.0001398,30]
[332822437,1721551950898,150.5,0.0001399,30]
[332822438,1721551951246,307.0,0.0001397,30]
[332822439,1721551951822,272.08,0.0001398,30]
[332822442,1721552071791,215.0,0.0001399,30]
[332822443,1721552072445,215.0,0.0001398,30]
[332822444,1721552073329,215.0,0.0001397,30]
[332822446,1721552131493,158.56,0.00018849,30]
[332822447,1721552191877,150.5,0.0001399,30]
[332822448,1721552192361,150.5,0.0001398,30]
[332822449,1721552192824,150.5,0.0001397,30]
[332822452,1721552311612,150.5,0.0001399,30]
[332822453,1721552312176,-3802.0,0.00012462,2]
[332822454,1721552313343,150.5,0.0001398,30]
[332822455,1721552313626,150.5,0.0001397,30]
[332822456,1721552435372,150.5,0.0001399,30]
[332822457,1721552435978,150.5,0.0001398,30]
[332822458,1721552436434,150.5,0.0001397,30]
[332822459,1721552472477,-9903.90453409,0.00012462,2]
[332822460,1721552472502,-1609.19616097,0.00012861,2]
[332822461,1721552472526,-250.0,0.0001291,2]
[332822462,1721552472551,-236.89930494,0.00012961,2]
[332822463,1721552510540,821.74,0.00011003,2]
[332822464,1721552551868,151.5,0.0001399,30]
[332822466,1721552638901,158.56,0.00018849,30]
[332822482,1721553031427,-150.66623924,0.000126,2]
[332822484,1721553031437,-108.71145469,0.00012655,2]
[332822486,1721553031487,-141.28854531,0.00012655,2]
[332822487,1721553031500,-326.80893431,0.00012666,2]
[332822488,1721553031512,-604.36366034,0.00012666,2]
[332822489,1721553031522,-159.51806429,0.00012667,2]
[332822490,1721553031533,-917.5395487,0.00012767,2]
[332822491,1721553031545,-915.38931562,0.00012767,2]
[332822510,1721553032154,-789.29286824,0.00012767,2]
[332822511,1721553032167,-253.57826744,0.00012767,2]
[332822512,1721553032176,-508.17,0.00012777,2]
[332822513,1721553032187,-195.07,0.00012801,2]
[332822514,1721553032197,-162.14215493,0.00012868,2]
[332822515,1721553032207,-890.74057297,0.00013,2]
[332822516,1721553032218,-2689.47165687,0.00013066,2]
[332822517,1721553032228,-2499.76237859,0.00013066,2]
[332822518,1721553032238,-200.0,0.00013164,2]
[332822519,1721553032248,-360.0,0.00013249,2]
[332822520,1721553032257,-821.74,0.00013267,2]
[332822521,1721553032267,-782.8627,0.00013347,2]
[332822522,1721553032276,-6100.0,0.00013479,3]
[332822523,1721553032286,-156.45800215,0.00013479,2]
[332822524,1721553032295,-2838.08549149,0.00013483,2]
[332822525,1721553032305,-8402.4146236,0.00013483,2]
[332822526,1721553032317,-339.85299,0.00013483,2]
[332822527,1721553032328,-696.7409784,0.00013483,2]
[332822528,1721553032344,-1089.39659133,0.00013483,2]
[332822529,1721553032354,-2514.14031768,0.00013483,2]
[332822530,1721553032365,-2881.97753304,0.00013483,2]
[332822531,1721553032375,-260.90339044,0.00013483,2]
[332822532,1721553032401,-10267.50179289,0.00013483,2]
[332822533,1721553032412,-150.0,0.00013488,2]
[332822534,1721553032421,-1250.27411027,0.00013499,2]
[332822535,1721553032431,-1656.11287231,0.0001351,2]
[332822536,1721553032440,-173.86,0.00013628,2]
[332822537,1721553032451,-588.64260855,0.00013648,2]
[332822538,1721553032461,-280.75671916,0.00013698,2]
[332822539,1721553032471,-175.35,0.00013699,2]
[332822540,1721553032480,-250.0,0.00013699,2]
[332822541,1721553032490,-463.35873498,0.00013789,2]
[332822542,1721553032499,-1516.31490775,0.00013799,2]
[332822543,1721553032508,-818.75156633,0.00013799,2]
[332822544,1721553032517,-658.4187,0.000138,2]
[332822545,1721553032526,-934.54460571,0.000138,2]
[332822546,1721553032536,-198.79389244,0.00013825,2]
[332822547,1721553032545,-173.88950288,0.00013859,2]
[332822548,1721553032554,-167.74,0.0001388,3]
[332822549,1721553032564,-503.24,0.0001388,3]
[332822550,1721553032574,-500.0,0.00013887,2]
[332822551,1721553032583,-200.0,0.00013887,2]
[332822552,1721553032593,-500.0,0.00013888,2]
[332822553,1721553032603,-200.0,0.00013888,2]
[332822554,1721553032612,-6322.9824714,0.0001389,2]
[332822555,1721553032632,-358.16338905,0.0001389,2]
[332822556,1721553032643,-166.69689958,0.0001389,2]
[332822557,1721553032655,-1000.0,0.0001389,2]
[332822558,1721553032665,-1792.72971137,0.0001389,2]
[332822559,1721553032676,-6990.38974753,0.0001389,2]
[332822560,1721553032687,-1502.92032109,0.0001389,2]
[332822576,1721553037487,-413.37996369,0.00013879,2]
[332822578,1721553037496,-2661.36989168,0.0001389,2]
[332822580,1721553037508,-1765.0,0.0001389,2]
[332822581,1721553037519,-3768.53644233,0.0001389,2]
[332822582,1721553037553,-853.08727691,0.0001389,2]
[332822583,1721553037619,-880.12,0.0001389,2]
[332822584,1721553037641,-1857.14049247,0.0001389,2]
[332822585,1721553037652,-4677.82886025,0.0001389,2]
[332822586,1721553037675,-955.97027776,0.0001389,2]
[332822587,1721553037686,-4936.4916975,0.0001389,2]
[332822588,1721553037697,-1900.0,0.0001389,2]
[332822589,1721553037730,-527.99648139,0.0001389,2]
[332822590,1721553037752,-5.93354758,0.0001389,2]
[332822591,1721553037764,-2879.31648734,0.0001389,2]
[332822592,1721553037775,-5207.04,0.0001389,2]
[332822593,1721553037787,-24905.25111142,0.0001389,2]
[332822594,1721553037814,-451.57864314,0.0001389,2]
[332822595,1721553037827,-13155.43099431,0.0001389,2]
[332822602,1721553039555,-663.40789983,0.0001389,2]
[332822603,1721553039725,-13014.6,0.0001389,2]
[332822604,1721553039783,-873.59500001,0.0001389,2]
[332822605,1721553039795,-17000.26518602,0.0001389,2]
[332822606,1721553039842,-300.0,0.0001389,2]
[332822661,1721553043335,-295.464,0.0001389,2]
[332822662,1721553043350,-1673.025,0.0001389,2]
[332822663,1721553043375,-5350.19999999,0.0001389,2]
[332822664,1721553043419,-56122.48883008,0.0001389,2]
[332822665,1721553043428,-242.0312,0.0001389,2]
[332822666,1721553043437,-212.8123,0.0001389,2]
[332822667,1721553043448,-162.14215493,0.00013899,2]
[332822668,1721553043457,-13388.9337,0.000139,2]
[332822669,1721553043466,-1401.4409,0.000139,2]
[332822670,1721553043475,-1130.67258124,0.000139,2]
[332822671,1721553043484,-934.54460572,0.000139,2]
[332822672,1721553043494,-195.2,0.00013973,2]
[332822673,1721553043504,-153.64,0.00013973,2]
[332822674,1721553043513,-21998.49222961,0.00013979,2]
[332822675,1721553043523,-51451.25883099,0.0001398,3]
[332822676,1721553043534,-6204.21830314,0.0001398,3]
[332822677,1721553043562,-690.07043219,0.00013,2]
[332822686,1721553045805,-269.24,0.00013,2]
[332822687,1721553045817,-1127.60836089,0.00013,2]
[332822688,1721553045829,-4301.92348732,0.00013,2]
[332822690,1721553045838,-527.80162773,0.00013896,2]
[332822692,1721553045847,-18277.93142527,0.0001398,3]
[332822693,1721553045856,-205.52225003,0.00013986,2]
[332822694,1721553045866,-265.08570858,0.00013986,2]
[332822695,1721553045875,-39828.86094921,0.0001399,3]
[332822696,1721553045951,-5872.55102109,0.0001399,3]
[332822697,1721553045963,-1369.04021875,0.0001399,3]
[332822990,1721553250440,158.56,0.00018849,30]
[332822992,1721553630464,915.68,0.00010728,2]
[332822994,1721553754539,12367.85035857,0.00010728,2]
[332822995,1721553775165,158.56,0.00018849,30]
[332822996,1721553855469,200.02,0.00012254,2]
[332822997,1721553907249,447.13,0.0001223,2]
[332822998,1721553930448,200.0,0.00012251,2]
[332822999,1721553939516,2309.73,0.00012255,2]
[332823000,1721553956609,2760.0,0.00012,10]
[332823002,1721553964614,7674.84149597,0.00012257,2]
[332823005,1721553973317,-10000.0,0.00012257,2]
[332823006,1721553974547,-6215.15850403,0.00012257,2]
[332823007,1721553974570,-679.1,0.00012323,2]
[332823008,1721553974592,-2058.16,0.0001234,2]
[332823009,1721553974620,-500.0,0.0001234,2]
[332823010,1721553974643,-500.0,0.00012422,2]
[332823011,1721553974667,-47.58149597,0.00012506,2]
[332823012,1721553975139,-795.19850403,0.00012506,2]
[332823013,1721553975165,-150.0,0.00012602,2]
[332823014,1721553975190,-300.0,0.00012682,2]